bitfinex/quotes_BTCUSD_20250730
["timestamp","ask_amount","ask_price","bid_price","bid_amount"]
[1753838434319,0.02579517,117660.0,117650.0,0.64168777]
[1753838437430,0.02579517,117660.0,117650.0,0.3290969]
[1753838437652,0.02887517,117660.0,117650.0,0.51056777]
[1753838437865,0.02887517,117660.0,117650.0,0.64148777]
[1753838438760,0.02579517,117660.0,117650.0,0.64148777]
[1753838438969,0.00227517,117660.0,117650.0,0.64148777]
[1753838439805,0.00227517,117660.0,117650.0,0.65738777]
[1753838440404,0.00227517,117660.0,117650.0,0.64148777]
[1753838441255,0.00227517,117660.0,117650.0,0.64446777]
[1753838442300,0.00227517,117660.0,117650.0,0.64148777]
[1753838445219,0.00014517,117660.0,117650.0,0.66037777]
[1753838447335,0.00014517,117660.0,117650.0,0.64457777]
[1753838447884,0.00226517,117660.0,117650.0,0.64457777]
[1753838449205,0.00226517,117660.0,117650.0,0.64148777]
[1753838449405,0.02657517,117660.0,117650.0,0.64148777]
[1753838450692,0.02950517,117660.0,117650.0,0.49831087]
[1753838450895,0.04590517,117660.0,117650.0,0.49831087]
[1753838451452,0.04590517,117660.0,117650.0,0.51569047]
[1753838451677,0.06250517,117660.0,117650.0,0.49831087]
[1753838452365,0.06250517,117660.0,117650.0,0.18572]
[1753838452560,0.06250517,117660.0,117650.0,0.49831087]
[1753838452817,0.06250517,117660.0,117650.0,0.18572]
[1753838453064,0.14917191,117660.0,117650.0,0.0723796]
[1753838453298,4.2673389,117660.0,117650.0,0.18572]
[1753838453547,4.4373202,117660.0,117650.0,0.18272]
[1753838453786,4.74141273,117660.0,117650.0,0.0693796]
[1753838454027,4.74141273,117660.0,117650.0,0.002]
[1753838454262,4.7329141,117660.0,117650.0,0.0193796]
[1753838454488,4.7329141,117660.0,117650.0,0.0213796]
[1753838454729,4.7329141,117660.0,117650.0,0.0173796]
[1753838455178,4.7329141,117660.0,117650.0,0.0193796]
[1753838455386,4.7329141,117660.0,117650.0,0.0183796]
[1753838456115,4.42032323,117660.0,117650.0,0.0183796]
[1753838456573,4.42032323,117660.0,117650.0,0.0173796]
[1753838456820,4.7329141,117660.0,117650.0,0.0173796]
[1753838458330,0.82599575,117650.0,117640.0,0.03]
[1753838458548,5.57994835,117650.0,117640.0,0.03]
[1753838458771,5.28821813,117650.0,117640.0,0.03]
[1753838460481,5.04224465,117650.0,117640.0,0.0473796]
[1753838460707,5.2122404,117650.0,117640.0,0.0473796]
[1753838461591,5.52483127,117650.0,117640.0,0.0473796]
[1753838461822,1.41516327,117650.0,117640.0,0.0473796]
[1753838462212,5.52483127,117650.0,117640.0,0.0473796]
[1753838462424,5.60930857,117650.0,117640.0,0.0473796]
[1753838462632,5.60930857,117650.0,117640.0,0.03]
[1753838463060,5.60930857,117650.0,117640.0,0.0473796]
[1753838463468,5.2967177,117650.0,117640.0,0.0473796]
[1753838463732,5.2967177,117650.0,117640.0,0.0963796]
[1753838463733,4.63416713,117650.0,117640.0,0.0963796]
[1753838463960,4.6751651,117650.0,117640.0,0.1204296]
[1753838464185,4.6751651,117650.0,117640.0,0.0963796]
[1753838464665,4.67516503,117650.0,117640.0,0.0963796]
[1753838464917,4.7256453,117650.0,117640.0,0.0963796]
[1753838465167,4.7256453,117650.0,117640.0,0.45419047]
[1753838465168,4.449668,117650.0,117640.0,0.45419047]
[1753838466350,4.449668,117650.0,117640.0,0.1415996]
[1753838466587,4.4845972,117650.0,117640.0,0.1224096]
[1753838467482,4.476098,117650.0,117640.0,0.1224096]
[1753838468325,4.479028,117650.0,117640.0,0.1224096]
[1753838468751,4.449668,117650.0,117640.0,0.45020047]
[1753838468968,4.449668,117650.0,117640.0,0.45329047]
[1753838469228,4.109668,117650.0,117640.0,0.46889047]
[1753838471371,0.13074517,117660.0,117650.0,0.0972796]
[1753838471584,0.13074517,117660.0,117650.0,0.0992596]
[1753838471780,0.00014517,117660.0,117650.0,0.56959047]
[1753838472216,0.34014517,117660.0,117650.0,0.56959047]
[1753838472622,0.34114517,117660.0,117650.0,0.56959047]
[1753838472831,0.34214517,117660.0,117650.0,0.56959047]
[1753838473680,0.34014517,117660.0,117650.0,0.56959047]
[1753838473868,0.34014517,117660.0,117650.0,0.57059047]
[1753838474069,0.34014517,117660.0,117650.0,0.57159047]
[1753838475042,0.34014517,117660.0,117650.0,0.57157047]
[1753838477739,0.50014517,117660.0,117650.0,0.57157047]
[1753838477981,0.50014517,117660.0,117650.0,0.65604777]
[1753838478224,0.00014517,117660.0,117650.0,0.65604777]
[1753838478463,0.00014517,117660.0,117650.0,0.63201777]
[1753838478711,0.00014517,117660.0,117650.0,0.65604777]
[1753838487918,0.00014517,117660.0,117650.0,0.65504777]
[1753838488407,0.00014517,117660.0,117650.0,0.65704777]
[1753838488636,0.00014517,117660.0,117650.0,0.66004777]
[1753838490789,0.00014517,117660.0,117650.0,0.8385433]
[1753838490997,0.00014517,117660.0,117650.0,0.66004777]
[1753838496238,0.00014517,117660.0,117650.0,0.65968777]
[1753838496412,0.02655517,117660.0,117650.0,0.2950069]
[1753838496639,0.02976517,117660.0,117650.0,0.65659777]
[1753838497023,0.02655517,117660.0,117650.0,0.65659777]
[1753838497168,0.00014517,117660.0,117650.0,0.65979777]
[1753838498839,0.00014517,117660.0,117650.0,0.52955777]
[1753838499051,0.00014517,117660.0,117650.0,0.65991777]
[1753838499261,0.00211517,117660.0,117650.0,0.65671777]
[1753838499499,0.02655517,117660.0,117650.0,0.65671777]
[1753838499701,0.02976517,117660.0,117650.0,0.45997817]
[1753838499914,0.02976517,117660.0,117650.0,0.59742817]
[1753838500550,0.02976517,117660.0,117650.0,0.2848373]
[1753838500767,0.02976517,117660.0,117650.0,0.59742817]
[1753838501686,0.02976517,117660.0,117650.0,0.46944777]
[1753838501687,0.04596517,117660.0,117650.0,0.46944777]
[1753838501892,0.04596517,117660.0,117650.0,0.1078569]
[1753838502093,0.04596517,117660.0,117650.0,0.2872169]
[1753838502337,0.06186517,117660.0,117650.0,0.2698373]
[1753838502554,0.06186517,117660.0,117650.0,0.2872169]
[1753838502977,0.06186517,117660.0,117650.0,0.1568569]
[1753838503190,0.06186517,117660.0,117650.0,0.2382169]
[1753838503602,0.06186517,117660.0,117650.0,0.2872169]
[1753838503812,0.06186517,117660.0,117650.0,0.2382169]
[1753838504027,0.06186517,117660.0,117650.0,0.2812169]
[1753838504460,0.06186517,117660.0,117650.0,0.2852169]
[1753838504893,0.04596517,117660.0,117650.0,0.2852169]
[1753838505522,0.06246517,117660.0,117650.0,0.2852169]
[1753838508223,0.06246517,117660.0,117650.0,0.2678373]
[1753838508453,0.06246517,117660.0,117650.0,0.18336]
[1753838508721,0.06246517,117660.0,117650.0,0.053]
[1753838508959,0.45460935,117660.0,117650.0,0.2006196]
[1753838509323,0.44611087,117660.0,117650.0,0.2006196]
[1753838510498,0.40246517,117660.0,117650.0,0.2006196]
[1753838510698,0.38596517,117660.0,117650.0,0.51321047]
[1753838510912,0.00014517,117660.0,117650.0,0.66054777]
[1753838514186,0.00014517,117660.0,117650.0,0.3479569]
[1753838514396,0.00014517,117660.0,117650.0,0.66054777]
[1753838521760,0.00014517,117660.0,117650.0,0.84598079]
[1753838522393,0.00014517,117660.0,117650.0,0.67598504]
[1753838522650,0.00014517,117660.0,117650.0,0.66054777]
[1753838522870,0.00014517,117660.0,117650.0,0.65854777]
[1753838523302,0.00014517,117660.0,117650.0,0.66154777]
[1753838523524,0.00014517,117660.0,117650.0,0.3315773]
[1753838523735,0.00014517,117660.0,117650.0,0.65954777]
[1753838524194,0.00014517,117660.0,117650.0,0.66354777]
[1753838525240,0.00014517,117660.0,117650.0,0.66370777]
[1753838531089,0.00014517,117660.0,117650.0,0.83370352]
[1753838531299,0.00014517,117660.0,117650.0,0.8422033]
[1753838531529,0.00014517,117660.0,117650.0,0.85070301]
[1753838531977,0.00014517,117660.0,117650.0,0.92665152]
[1753838532196,0.00014517,117660.0,117650.0,0.96815203]
[1753838532603,0.00014517,117660.0,117650.0,0.97665167]
[1753838533031,0.00014517,117660.0,117650.0,0.95115254]
[1753838533240,0.00014517,117660.0,117650.0,0.96815182]
[1753838533456,0.00014517,117660.0,117650.0,0.96815189]
[1753838534325,0.00014517,117660.0,117650.0,0.95965225]
[1753838534961,0.00014517,117660.0,117650.0,0.96815189]
[1753838535165,0.00014517,117660.0,117650.0,0.95115254]
[1753838535811,0.00014517,117660.0,117650.0,0.78115679]
[1753838536028,0.00014517,117660.0,117650.0,0.71370777]
[1753838536234,0.00014517,117660.0,117650.0,0.53430777]
[1753838536448,0.02958517,117660.0,117650.0,0.59992817]
[1753838536892,0.02958517,117660.0,117650.0,0.66730777]
[1753838537111,0.02958517,117660.0,117650.0,0.69375777]
[1753838537334,0.00220517,117660.0,117650.0,0.70875777]
[1753838537545,0.00220517,117660.0,117650.0,0.65875777]
[1753838537765,0.00220517,117660.0,117650.0,0.70875777]
[1753838538515,0.00014517,117660.0,117650.0,0.71186777]
[1753838538942,0.00014517,117660.0,117650.0,0.75150352]
[1753838539159,0.00014517,117660.0,117650.0,0.90793232]
[1753838539393,0.00014517,117660.0,117650.0,0.91643203]
[1753838539613,0.00014517,117660.0,117650.0,0.92493167]
[1753838539824,0.00014517,117660.0,117650.0,0.91643203]
[1753838540036,0.00014517,117660.0,117650.0,0.91643196]
[1753838540251,0.00014517,117660.0,117650.0,0.90793232]
[1753838540473,0.00014517,117660.0,117650.0,0.91643203]
[1753838540681,0.00014517,117660.0,117650.0,0.84943254]
[1753838540911,0.00014517,117660.0,117650.0,0.89943254]
[1753838542202,0.00014517,117660.0,117650.0,0.84943254]
[1753838542424,0.00014517,117660.0,117650.0,0.90793232]
[1753838542858,0.00014517,117660.0,117650.0,0.91643203]
[1753838543082,0.00014517,117660.0,117650.0,0.89943254]
[1753838543315,0.00014517,117660.0,117650.0,0.90793232]
[1753838543960,0.00014517,117660.0,117650.0,0.98343073]
[1753838545727,0.02421,117690.0,117680.0,0.0663796]
[1753838545964,0.01867,117700.0,117680.0,0.0663796]
[1753838545965,0.02738,117700.0,117690.0,0.0663796]
[1753838546168,0.02958576,117700.0,117690.0,0.63437777]
[1753838546373,0.02958576,117700.0,117690.0,0.63649777]
[1753838546584,0.02958576,117700.0,117690.0,0.65560777]
[1753838546585,0.00014576,117700.0,117690.0,0.65560777]
[1753838547264,0.00014576,117700.0,117690.0,0.82554574]
[1753838547894,0.00014576,117700.0,117690.0,0.65760777]
[1753838548099,0.00014576,117700.0,117690.0,0.67174517]
[1753838548309,0.00014576,117700.0,117690.0,0.65560777]
[1753838550244,0.00014576,117700.0,117690.0,0.82554574]
[1753838550454,0.00014576,117700.0,117690.0,0.84253931]
[1753838550661,0.00014576,117700.0,117690.0,0.99089376]
[1753838551158,0.00014576,117700.0,117690.0,0.99589376]
[1753838554429,0.00014576,117700.0,117690.0,1.33589376]
[1753838554879,0.00014576,117700.0,117690.0,1.59849376]
[1753838557992,0.00014576,117700.0,117690.0,1.91108463]
[1753838558990,0.00014576,117700.0,117690.0,1.59849376]
[1753838559599,0.00014576,117700.0,117690.0,1.59549376]
[1753838560059,0.00014576,117700.0,117690.0,1.60049376]
[1753838560696,0.00014576,117700.0,117690.0,1.91308463]
[1753838561548,0.3565,117750.0,117720.0,0.02548354]
[1753838561549,0.02738,117750.0,117720.0,0.02548354]
[1753838561776,0.02752573,117750.0,117740.0,0.66586259]
[1753838562003,0.00220573,117750.0,117740.0,0.69167573]
[1753838562246,0.00220573,117750.0,117740.0,0.71600573]
[1753838562515,0.02641573,117750.0,117740.0,0.70751259]
[1753838562730,0.02958573,117750.0,117740.0,0.81382259]
[1753838563385,0.03058573,117750.0,117740.0,0.81132259]
[1753838563606,0.03058573,117750.0,117740.0,0.49873172]
[1753838563839,0.03058573,117750.0,117740.0,0.81132259]
[1753838564056,0.03058573,117750.0,117740.0,0.83505259]
[1753838564476,0.00320573,117750.0,117740.0,0.83505259]
[1753838564697,0.00114573,117750.0,117740.0,1.18478545]
[1753838564931,0.00114573,117750.0,117740.0,1.28478545]
[1753838565151,0.00114573,117750.0,117740.0,1.29899672]
[1753838565378,0.00114573,117750.0,117740.0,1.63899672]
[1753838566317,0.00114573,117750.0,117740.0,1.32640585]
[1753838566746,0.00114573,117750.0,117740.0,1.63999672]
[1753838567153,0.00014573,117750.0,117740.0,1.63999672]
[1753838567371,0.00014573,117750.0,117740.0,1.63899672]
[1753838567598,0.00114573,117750.0,117740.0,1.63899672]
[1753838567805,0.00014573,117750.0,117740.0,1.64199672]
[1753838568240,0.00014573,117750.0,117740.0,1.32191307]
[1753838568666,0.00014573,117750.0,117740.0,1.33040585]
[1753838569063,0.00014573,117750.0,117740.0,1.35583459]
[1753838570369,0.00014573,117750.0,117740.0,1.66842546]
[1753838570576,0.00014573,117750.0,117740.0,1.93102546]
[1753838570789,0.00014573,117750.0,117740.0,1.61843459]
[1753838571420,0.00014573,117750.0,117740.0,1.5844626]
[1753838571650,0.00014573,117750.0,117740.0,1.59295581]
[1753838571850,0.00014573,117750.0,117740.0,1.60144881]
[1753838572054,0.00014573,117750.0,117740.0,1.6184348]
[1753838572270,0.00014573,117750.0,117740.0,1.62692765]
[1753838572486,0.00014573,117750.0,117740.0,1.62692722]
[1753838573149,0.00014573,117750.0,117740.0,1.93951809]
[1753838573812,0.00014573,117750.0,117740.0,1.62692722]
[1753838574042,0.00014573,117750.0,117740.0,1.46231589]
[1753838574256,0.00014573,117750.0,117740.0,1.61002196]
[1753838574463,0.00014573,117750.0,117740.0,1.61851488]
[1753838574673,0.00014573,117750.0,117740.0,1.61002196]
[1753838574887,0.00014573,117750.0,117740.0,1.62700766]
[1753838577949,0.00014573,117750.0,117740.0,1.93959853]
[1753838580360,0.00014573,117750.0,117740.0,1.60986181]
[1753838580578,0.00014573,117750.0,117740.0,1.61835459]
[1753838581703,0.00014573,117750.0,117740.0,1.93094546]
[1753838583618,0.00014573,117750.0,117740.0,1.61835459]
[1753838583828,0.00014573,117750.0,117740.0,1.93094546]
[1753838584888,0.00014573,117750.0,117740.0,1.61835459]
[1753838585302,0.00014573,117750.0,117740.0,1.93094546]
[1753838585516,0.00014573,117750.0,117740.0,1.47080896]
[1753838585729,0.02925573,117750.0,117740.0,1.43479426]
[1753838585948,0.02925573,117750.0,117740.0,1.49967386]
[1753838586161,0.02925573,117750.0,117740.0,1.51666014]
[1753838586395,0.02925573,117750.0,117740.0,1.49967386]
[1753838586621,0.02399,117770.0,117760.0,0.26883695]
[1753838586849,0.00202856,117770.0,117760.0,1.24364104]
[1753838587055,4.856e-05,117770.0,117760.0,1.25904104]
[1753838587266,4.856e-05,117770.0,117760.0,1.29443245]
[1753838587474,4.856e-05,117770.0,117760.0,1.28594111]
[1753838587692,4.856e-05,117770.0,117760.0,1.29443245]
[1753838587929,4.856e-05,117770.0,117760.0,1.28594118]
[1753838588141,0.02601856,117770.0,117760.0,1.23340461]
[1753838588347,0.02915856,117770.0,117760.0,1.25038793]
[1753838588552,0.03115856,117770.0,117760.0,1.25038808]
[1753838588970,0.03115856,117770.0,117760.0,1.23340461]
[1753838589212,0.03115856,117770.0,117760.0,1.21067461]
[1753838589653,0.03115856,117770.0,117760.0,1.19457461]
[1753838589860,0.03115856,117770.0,117760.0,1.14457461]
[1753838590064,0.03115856,117770.0,117760.0,1.19457461]
[1753838590276,0.04755856,117770.0,117760.0,0.61107679]
[1753838590490,0.06375856,117770.0,117760.0,0.54362777]
[1753838590715,0.06375856,117770.0,117760.0,0.2800369]
[1753838592239,0.06375856,117770.0,117760.0,0.59262777]
[1753838592883,0.06375856,117770.0,117760.0,0.2800369]
[1753838596532,0.06375856,117770.0,117760.0,0.2651573]
[1753838596711,0.06375856,117770.0,117760.0,0.2800369]
[1753838597437,0.06375856,117770.0,117760.0,0.2651573]
[1753838597656,0.06375856,117770.0,117760.0,0.2800369]
[1753838599338,0.06375856,117770.0,117760.0,0.58471389]
[1753838600547,0.06375856,117770.0,117760.0,0.2800369]
[1753838609068,0.06375856,117770.0,117760.0,0.2651573]
[1753838609209,0.06375856,117770.0,117760.0,0.2800369]
[1753838611250,0.31316537,117800.0,117760.0,0.2800369]
[1753838611456,0.31316537,117800.0,117760.0,0.2232996]
[1753838611457,0.00205,117770.0,117760.0,0.2232996]
[1753838611665,0.00205,117770.0,117760.0,0.3098969]
[1753838612100,0.30472555,117800.0,117790.0,0.0148796]
[1753838612325,4.11176656,117800.0,117790.0,0.0148796]
[1753838612987,4.42372471,117800.0,117790.0,0.0148796]
[1753838613412,4.45336471,117800.0,117790.0,0.0148796]
[1753838614335,4.48386471,117800.0,117790.0,0.0148796]
[1753838615420,4.82386471,117800.0,117790.0,0.0148796]
[1753838615630,4.83235309,117800.0,117790.0,0.0148796]
[1753838616480,4.83235302,117800.0,117790.0,0.0148796]
[1753838616690,4.84084147,117800.0,117790.0,0.0148796]
[1753838616934,4.8408414,117800.0,117790.0,0.0148796]
[1753838617381,4.83235302,117800.0,117790.0,0.0148796]
[1753838617609,4.8408414,117800.0,117790.0,0.0148796]
[1753838618501,4.83235302,117800.0,117790.0,0.0148796]
[1753838619263,4.82386471,117800.0,117790.0,0.0148796]
[1753838620350,4.83235309,117800.0,117790.0,0.0148796]
[1753838621580,4.82386471,117800.0,117790.0,0.0148796]
[1753838621736,4.83235302,117800.0,117790.0,0.0148796]
[1753838622392,4.82386471,117800.0,117790.0,0.0148796]
[1753838622824,4.95442471,117800.0,117790.0,0.0148796]
[1753838624758,4.95438471,117800.0,117790.0,0.0148796]
[1753838627956,4.82202471,117800.0,117790.0,0.0148796]
[1753838628164,4.95254471,117800.0,117790.0,0.0148796]
[1753838630631,4.96103309,117800.0,117790.0,0.0148796]
[1753838630842,5.05584899,117800.0,117790.0,0.0148796]
[1753838631054,5.04736039,117800.0,117790.0,0.0148796]
[1753838631283,4.97137169,117800.0,117790.0,0.0148796]
[1753838631675,4.96288309,117800.0,117790.0,0.0148796]
[1753838632216,4.97137154,117800.0,117790.0,0.0148796]
[1753838633062,4.97986021,117800.0,117790.0,0.0148796]
[1753838633281,5.00399321,117800.0,117790.0,0.0148796]
[1753838633571,0.0163,117780.0,117770.0,0.049]
[1753838633774,0.37989047,117770.0,117760.0,0.0638796]
[1753838633997,0.71854862,117770.0,117760.0,0.0638796]
[1753838634212,0.71005815,117770.0,117760.0,0.0638796]
[1753838634423,0.39624,117770.0,117760.0,0.0638796]
[1753838634633,0.66715815,117770.0,117760.0,0.0923696]
[1753838634842,0.47052,117770.0,117760.0,0.0923696]
[1753838635092,0.34,117770.0,117760.0,0.1918469]
[1753838635292,4.125968,117780.0,117770.0,0.0638796]
[1753838635499,4.240188,117780.0,117770.0,0.0660396]
[1753838635708,4.449668,117780.0,117770.0,0.0923696]
[1753838635965,0.34,117780.0,117770.0,0.2091469]
[1753838636197,0.34,117780.0,117770.0,0.2071469]
[1753838636851,0.343,117780.0,117770.0,0.2071469]
[1753838637569,0.344,117780.0,117770.0,0.2071469]
[1753838640280,0.004,117780.0,117770.0,0.2071469]
[1753838642724,0.004,117780.0,117770.0,0.3377469]
[1753838655293,0.004,117780.0,117770.0,0.3228673]
[1753838655517,0.004,117780.0,117770.0,0.3377469]
[1753838656211,0.004,117780.0,117770.0,0.3214469]
[1753838657381,0.004,117780.0,117770.0,0.3376469]
[1753838659016,0.31602476,117780.0,117770.0,0.3376469]
[1753838668250,0.35580476,117780.0,117770.0,0.047]
[1753838668476,0.37332476,117780.0,117770.0,0.17744]
[1753838668722,0.39030448,117780.0,117760.0,0.1532]
[1753838668970,0.31202476,117770.0,117760.0,0.2846773]
[1753838669193,0.31400476,117770.0,117760.0,0.2376773]
[1753838669607,0.31400476,117770.0,117760.0,0.2846773]
[1753838670489,0.31400476,117770.0,117760.0,0.2376773]
[1753838670692,0.31400476,117770.0,117760.0,0.2846773]
[1753838671026,0.31500476,117770.0,117760.0,0.2846773]
[1753838671670,0.31500476,117770.0,117760.0,0.2876073]
[1753838671872,0.002,117770.0,117760.0,0.3202969]
[1753838672080,0.31402476,117770.0,117760.0,0.3202969]
[1753838673316,0.31402476,117770.0,117760.0,0.3354969]
[1753838673520,0.002,117770.0,117760.0,0.3354969]
[1753838678889,0.002,117770.0,117760.0,0.64752166]
[1753838679846,0.002,117770.0,117760.0,0.3354969]
[1753838680762,0.002,117770.0,117760.0,0.2050569]
[1753838680967,0.002,117770.0,117760.0,0.3354169]
[1753838683585,0.31600476,117770.0,117760.0,0.2563273]
[1753838683833,0.37957654,117770.0,117750.0,0.04117]
[1753838684078,0.59315538,117770.0,117760.0,0.0618796]
[1753838684312,0.91367105,117770.0,117760.0,0.0618796]
[1753838684555,0.93839105,117770.0,117760.0,0.0618796]
[1753838684972,0.93739105,117770.0,117760.0,0.0618796]
[1753838685195,0.92890014,117770.0,117760.0,0.0618796]
[1753838685406,0.96360716,117770.0,117760.0,0.0618796]
[1753838685833,0.96260716,117770.0,117760.0,0.0618796]
[1753838686248,0.97109821,117770.0,117760.0,0.0618796]
[1753838686739,0.97209821,117770.0,117760.0,0.0618796]
[1753838687280,0.90166442,117770.0,117760.0,0.0618796]
[1753838687554,5.01133242,117770.0,117760.0,0.0148796]
[1753838689718,4.99435046,117770.0,117760.0,0.0618796]
[1753838690345,4.99435018,117770.0,117760.0,0.0618796]
[1753838690579,5.00284109,117770.0,117760.0,0.0618796]
[1753838691054,5.09580944,117770.0,117760.0,0.0618796]
[1753838691303,5.09580944,117770.0,117760.0,0.0148796]
[1753838691542,4.47405927,117760.0,117750.0,0.047]
[1753838691775,4.83003811,117760.0,117750.0,0.047]
[1753838691999,4.86132974,117760.0,117750.0,0.047]
[1753838692689,4.52132974,117760.0,117750.0,0.047]
[1753838692908,4.52133032,117760.0,117750.0,0.04704856]
[1753838693336,4.49585544,117760.0,117750.0,0.04704856]
[1753838693573,4.47086403,117760.0,117750.0,0.06292816]
[1753838693796,4.47935544,117760.0,117750.0,0.04804856]
[1753838694218,4.48784699,117760.0,117750.0,0.04804856]
[1753838694406,4.47935544,117760.0,117750.0,0.04804856]
[1753838694674,4.47935544,117760.0,117750.0,0.06292816]
[1753838695094,4.48784699,117760.0,117750.0,0.06292816]
[1753838695538,4.48135544,117760.0,117750.0,0.06292816]
[1753838696175,4.48135544,117760.0,117750.0,0.06192816]
[1753838696382,4.48335544,117760.0,117750.0,0.06192816]
[1753838696606,4.47486403,117760.0,117750.0,0.06192816]
[1753838696813,4.48335551,117760.0,117750.0,0.06192816]
[1753838697773,4.49184706,117760.0,117750.0,0.06192816]
[1753838697975,4.50033883,117760.0,117750.0,0.06192816]
[1753838698179,4.51765883,117760.0,117750.0,0.06192816]
[1753838698599,4.50916706,117760.0,117750.0,0.06192816]
[1753838698809,4.50724706,117760.0,117750.0,0.06192816]
[1753838699015,4.58481599,117760.0,117750.0,0.06192816]
[1753838699658,4.57632436,117760.0,117750.0,0.06192816]
[1753838699843,4.48335551,117760.0,117750.0,0.06192816]
[1753838700527,4.49184714,117760.0,117750.0,0.06192816]
[1753838700984,4.84033898,117760.0,117750.0,0.04704856]
[1753838701194,4.84033891,117760.0,117750.0,0.04704856]
[1753838701419,5.3738602,117760.0,117750.0,4.856e-05]
[1753838701646,5.49838582,117760.0,117750.0,0.01492816]
[1753838702117,5.60031214,117760.0,117750.0,4.856e-05]
[1753838702372,5.62266014,117760.0,117750.0,4.856e-05]
[1753838703447,5.61866014,117760.0,117750.0,4.856e-05]
[1753838703658,5.74898014,117760.0,117750.0,4.856e-05]
[1753838703880,5.75598014,117760.0,117750.0,4.856e-05]
[1753838704093,5.75198014,117760.0,117750.0,4.856e-05]
[1753838704305,5.74898014,117760.0,117750.0,4.856e-05]
[1753838704522,5.73263214,117760.0,117750.0,4.856e-05]
[1753838704707,5.73663214,117760.0,117750.0,4.856e-05]
[1753838704947,6.07632214,117760.0,117750.0,4.856e-05]
[1753838706679,1.96665414,117760.0,117750.0,4.856e-05]
[1753838706885,6.07632214,117760.0,117750.0,4.856e-05]
[1753838707699,1.96665414,117760.0,117750.0,4.856e-05]
[1753838707927,6.07632214,117760.0,117750.0,4.856e-05]
[1753838708556,6.09458581,117760.0,117750.0,4.856e-05]
[1753838710790,1.98491781,117760.0,117750.0,4.856e-05]
[1753838711134,6.09458581,117760.0,117750.0,4.856e-05]
[1753838713049,6.14564581,117760.0,117750.0,4.856e-05]
[1753838714054,2.03597781,117760.0,117750.0,4.856e-05]
[1753838714470,6.14564581,117760.0,117750.0,4.856e-05]
[1753838716948,6.07967807,117760.0,117750.0,0.02784856]
[1753838717162,5.68126429,117760.0,117750.0,0.04642856]
[1753838717370,5.42694975,117760.0,117750.0,0.04642856]
[1753838717621,4.61647286,117760.0,117750.0,0.07730816]
[1753838717839,5.26849762,117760.0,117750.0,0.07730816]
[1753838718054,5.27698889,117760.0,117750.0,0.07730816]
[1753838718260,5.2854803,117760.0,117750.0,0.07730816]
[1753838718463,5.27570818,117760.0,117750.0,0.07730816]
[1753838718674,5.25872522,117760.0,117750.0,0.07730816]
[1753838719123,5.26721663,117760.0,117750.0,0.07730816]
[1753838719354,5.26721656,117760.0,117750.0,0.07730816]
[1753838719571,5.24174276,117760.0,117750.0,0.12430816]
[1753838719785,4.929758,117760.0,117750.0,0.12430816]
[1753838722653,0.82009,117760.0,117750.0,0.12430816]
[1753838723298,1.13211476,117760.0,117750.0,0.12430816]
[1753838723729,1.1406061,117760.0,117750.0,0.12430816]
[1753838723953,1.14060595,117760.0,117750.0,0.12430816]
[1753838725200,1.14909729,117760.0,117750.0,0.12430816]
[1753838725433,1.01020595,117760.0,117750.0,0.12430816]
[1753838725606,1.14068595,117760.0,117750.0,0.12430816]
[1753838725802,1.14917736,117760.0,117750.0,0.12430816]
[1753838726375,1.14068595,117760.0,117750.0,0.12430816]
[1753838727012,1.13219476,117760.0,117750.0,0.12430816]
[1753838727425,1.14068595,117760.0,117750.0,0.12430816]
[1753838727831,1.13219476,117760.0,117750.0,0.12430816]
[1753838728672,1.14068603,117760.0,117750.0,0.12430816]
[1753838729540,0.82017,117760.0,117750.0,0.12430816]
[1753838729973,1.13219476,117760.0,117750.0,0.12430816]
[1753838730390,1.14068595,117760.0,117750.0,0.12430816]
[1753838730602,1.13219476,117760.0,117750.0,0.12430816]
[1753838731013,1.14068603,117760.0,117750.0,0.12430816]
[1753838731226,1.14917737,117760.0,117750.0,0.12430816]
[1753838731439,1.15766892,117760.0,117750.0,0.12430816]
[1753838731658,1.15964892,117760.0,117750.0,0.12430816]
[1753838732323,1.15964885,117760.0,117750.0,0.12430816]
[1753838733172,1.15115737,117760.0,117750.0,0.12430816]
[1753838733369,1.14266603,117760.0,117750.0,0.12430816]
[1753838734206,1.15115737,117760.0,117750.0,0.12430816]
[1753838734858,0.82017,117760.0,117750.0,0.12430816]
[1753838735100,1.13219476,117760.0,117750.0,0.12430816]
[1753838737025,0.82029,117760.0,117750.0,0.12430816]
[1753838737681,0.81629,117760.0,117750.0,0.12430816]
[1753838737886,0.81029,117760.0,117750.0,0.12430816]
[1753838738064,0.81129,117760.0,117750.0,0.12430816]
[1753838741381,1.12331476,117760.0,117750.0,0.12430816]
[1753838742038,1.19591692,117760.0,117750.0,0.07964856]
[1753838742264,1.19591692,117760.0,117750.0,0.01492816]
[1753838742265,1.60283061,117760.0,117750.0,0.01492816]
[1753838742475,1.61132238,117760.0,117750.0,4.856e-05]
[1753838742654,5.88944501,117760.0,117750.0,0.01492816]
[1753838742884,5.57742025,117760.0,117750.0,0.01492816]
[1753838743090,5.36963487,117760.0,117750.0,0.01492816]
[1753838743243,5.3611431,117760.0,117750.0,0.01492816]
[1753838743667,5.35073125,117760.0,117750.0,0.01492816]
[1753838743838,5.23496276,117760.0,117750.0,0.07555816]
[1753838744053,4.790358,117760.0,117750.0,0.12255816]
[1753838744257,4.920958,117760.0,117750.0,0.12255816]
[1753838744466,5.24147395,117760.0,117750.0,0.12255816]
[1753838744719,5.24345395,117760.0,117750.0,0.12255816]
[1753838746910,5.23496276,117760.0,117750.0,0.12255816]
[1753838751132,1.12331476,117760.0,117750.0,0.12255816]
[1753838753554,0.68069,117760.0,117750.0,0.12255816]
[1753838753759,0.34069,117760.0,117750.0,0.51906022]
[1753838760740,0.34069,117760.0,117750.0,0.20703546]
[1753838760950,0.34069,117760.0,117750.0,0.51906022]
[1753838769233,0.34267,117760.0,117750.0,0.20183546]
[1753838769651,0.34267,117760.0,117750.0,0.20703546]
[1753838770061,0.34069,117760.0,117750.0,0.20703546]
[1753838772307,0.34069,117760.0,117750.0,0.51906022]
[1753838778410,0.34267,117760.0,117750.0,0.20183546]
[1753838778627,0.34267,117760.0,117750.0,0.51386022]
[1753838779032,0.34267,117760.0,117750.0,0.20477546]
[1753838779754,0.34267,117760.0,117750.0,0.20688546]
[1753838781166,0.34267,117760.0,117750.0,0.51891022]
[1753838781381,0.34069,117760.0,117750.0,0.51891022]
[1753838782250,0.34069,117760.0,117750.0,0.20688546]
[1753838782449,0.34069,117760.0,117750.0,0.51891022]
[1753838784172,0.34267,117760.0,117750.0,0.51891022]
[1753838785066,0.34267,117760.0,117750.0,0.20688546]
[1753838785265,0.67749476,117760.0,117750.0,0.29212546]
[1753838785653,0.69571476,117760.0,117750.0,0.06192816]
[1753838785864,1.2748034,117760.0,117750.0,0.06192816]
[1753838786077,1.19881758,117760.0,117750.0,0.19224816]
[1753838786294,1.1903261,117760.0,117750.0,0.19224816]
[1753838786710,1.19881751,117760.0,117750.0,0.19224816]
[1753838787132,1.1903261,117760.0,117750.0,0.19224816]
[1753838787358,1.18183476,117760.0,117750.0,0.19224816]
[1753838787595,0.88679268,117760.0,117750.0,0.19224816]